Cogmind - Beta 16 @@@ ROGUE MODE // 2025.11.03 @ 20:57:32 Player: Humbble Result: Destroyed by G-47 Trooper with Particle Gun Performance ------------- Evolutions (1) 500 Regions Visited (2) 400 Robots Destroyed (13) 65 Value Destroyed (395) 395 Prototype IDs (0) 0 Alien Tech Used (0) 0 Bonus (0) 0 TOTAL SCORE: 1360 Bonus ------- None Cogmind --------- Core Integrity 0/400 Matter 300/300 Energy 265/265 System Corruption 2% Temperature Cool (9) Movement Treading (160) Location -9/Materials Parts ------- > --- POWER (1) -------- Improved Ion Engine > --- PROPULSION (3) --- Light Treads Light Treads > --- UTILITY (3) ------ (None) > --- WEAPON (2) ------- Autogun > --- INVENTORY (5) ---- Improved Terrain Scanner Peak State ------------ > --- POWER ------------ Light Nuclear Core > --- PROPULSION ------- Light Treads Light Treads Light Treads > --- UTILITY ---------- Improved Heat Sink Small Storage Unit Seismic Detector > --- WEAPON ----------- EM Pulse Gun Particle Gun > --- INVENTORY -------- Light Ion Engine Light Treads Light Treads Improved Terrain Scanner Small Laser Assault Rifle Autogun Grenade Launcher [Rating: 15] Favorites ----------- Power Light Nuclear Core Engine Light Ion Engine Power Core Light Nuclear Core Propulsion Light Treads Treads Light Treads Utility Small Storage Unit Device Seismic Detector Storage Small Storage Unit Weapon EM Pulse Gun Energy Gun EM Pulse Gun Ballistic Gun Assault Rifle Launcher Grenade Launcher Build | -11 -10 -9 ------- Run | Yrd Mat Mat Slots Evolved 2 | . . 2 Power . | . . . Propulsion 1 | . . 1 Utility 1 | . . 1 Weapon . | . . . Parts Attached 20 | 7 2 11 Power 4 | 1 1 2 Engine 3 | 1 . 2 Core 1 | . 1 . Reactor . | . . . Propulsion 6 | 2 . 4 Treads 6 | 2 . 4 Leg . | . . . Wheel . | . . . Hover . | . . . Flight . | . . . Utility 4 | 2 1 1 Device 3 | 1 1 1 Storage 1 | 1 . . Processor . | . . . Hackware . | . . . Protection . | . . . Artifact . | . . . Weapon 6 | 2 . 4 Energy Gun 3 | 2 . 1 Energy Cannon . | . . . Ballistic Gun 2 | . . 2 Ballistic Cannon . | . . . Launcher 1 | . . 1 Special Weapon . | . . . Impact Weapon . | . . . Slashing Weapon . | . . . Piercing Weapon . | . . . Special Melee Weapon . | . . . Unidentified Prototypes . | . . . Parts Lost 14 | . . 14 Power 2 | . . 2 Propulsion 4 | . . 4 Utility 3 | . . 3 Weapon 5 | . . 5 Highest Loss Streak 14 | . . 14 To Critical Strikes . | . . . Average Backups 6 | 3 7 6 Power . | . 1 . Propulsion 2 | 1 2 1 Utility 1 | . 1 1 Weapon 2 | . 1 2 Tool/Special . | . . . Unused Backups 3 | . 3 . Power . | . . . Propulsion 2 | . 2 . Utility 1 | . 1 . Weapon . | . . . Tool/Special . | . . . Average Slot Usage (%) 93 | . 100 83 Engine 4 | . 5 2 Core 8 | . 8 7 Treads 27 | . 28 27 Device 15 | . 14 16 Storage 12 | . 14 9 Energy Gun 23 | . 28 17 Peak Build Rating 15 | 9 10 15 Average Rating 9 | 6 9 11 On Entrance 6 | . 9 10 Avg Prop Armor Cover (%) . | . . . Naked Turns . | . . . Heaviest Build 17 | 12 14 17 Greatest Support 60 | 40 40 60 Greatest Overweight (x) 3 | 2 . 3 Average Overweight (x) . | . . . Largest Inventory Capacity 8 | 8 8 8 Average Capacity 7 | 7 8 7 Most Carried 8 | 5 8 8 Average Carried 6 | 3 7 6 Final Capacity 8 | 8 8 5 Final Carried 8 | 5 8 1 Class Distribution -------------------- 100% | Mutant Dominant Class ---------------- Mutant | -10/Materials Mutant | -9/Materials Resources | -11 -10 -9 ----------- Run | Yrd Mat Mat Matter Collected 409 | 270 20 119 Remotely . | . . . Salvage Created 472 | 25 120 327 Parts 35 | 3 10 22 Haulers Intercepted . | . . . Recyclers Shooed 2 | 1 1 . Parts Field Recycled . | . . . Retrieved Matter . | . . . Parts Self-Destructed . | . . . Prevented . | . . . Parts Restored . | . . . Kills | -11 -10 -9 ------- Run | Yrd Mat Mat Combat Hostiles Destroyed 9 | . 2 7 Guns 7 | . 2 5 AOE 2 | . . 2 Classes Destroyed 7 | 1 2 4 Worker 1 | . . 1 Builder 1 | . . 1 Tunneler 1 | 1 . . Operator 1 | . 1 . Grunt 6 | . 2 4 Brawler 1 | . . 1 Sentry 2 | . . 2 Best Kill Streak 6 | 1 2 6 Combat Bots Only 5 | . 2 5 Max Kills in Single Turn 2 | 1 1 2 Gunslinging . | . . . Exploded 1 | . . 1 Melee . | . . . Uniques/NPCs Destroyed . | . . . Combat | -11 -10 -9 -------- Run | Yrd Mat Mat Hostile Shots Fired 160 | . 11 149 Missed 35 | . 8 27 Hits 125 | . 3 122 Melee 7 | . . 7 Projectile 118 | . 3 115 Critical Strikes 4 | . . 4 Damage Taken 1760 | . 37 1723 Core 438 | . 27 411 Absorbed by Shields . | . . . Core Remaining (%) 94 | 100 89 . Volleys Fired 45 | 4 10 31 Largest 2 | 2 2 2 Hottest 105 | 80 80 105 Shots Fired 71 | 8 20 43 Gun 68 | 8 20 40 Cannon . | . . . Launcher 3 | . . 3 Special . | . . . Kinetic 12 | . . 12 Thermal 36 | 4 10 22 Explosive 3 | . . 3 Electromagnetic 20 | 4 10 6 Robot Hit Streak 13 | 1 7 13 Robot Miss Streak 5 | 1 5 2 Penetration Max . | . . . Secondary Targets 1 | . . 1 Max Gunslinging Chain 1 | . . 1 Shots Hit Robots 49 | 4 11 34 Core Hits 24 | 1 6 17 Critical Kills . | . . . Critical Parts Destroyed . | . . . Critical Strikes 1 | . . 1 Burn 1 | . . 1 Melee Attacks . | . . . Impact . | . . . Slashing . | . . . Piercing . | . . . Sneak Attacks . | . . . Combat Hostiles . | . . . Follow-up Attacks . | . . . Damage Inflicted 844 | 43 139 662 Guns 656 | 43 135 478 Cannons . | . . . Explosions 175 | . . 175 Melee . | . . . Ramming 13 | . 4 9 Kinetic 146 | . . 146 Thermal 442 | 43 55 344 Explosive 120 | . . 120 Electromagnetic 123 | . 80 43 Impact . | . . . Slashing . | . . . Piercing . | . . . Highest Corruption 2 | . 2 2 Average Corruption 2 | . 2 2 Corruption Purged . | . . . Corruption Blocked . | . . . Effects 2 | . 1 1 Energy Discharges 1 | . 1 . Parts Rejected 1 | . . 1 Overload Shots . | . . . Overflow Damage . | . . . Projectiles . | . . . Explosions . | . . . Melee . | . . . Knockbacks 1 | . . 1 Impact 1 | . . 1 Kinetic . | . . . Secondary . | . . . Self-Inflicted Damage 63 | . . 63 Shots 3 | . . 3 Rammed 8 | . 2 6 Targets Rammed 8 | . 2 6 Kicked . | . . . Crushed . | . . . Highest Temperature 168 | 36 168 110 Average Temperature 58 | 20 76 54 Received Heat Transfer 774 | . 24 750 Siege Activations . | . . . Martial Activations . | . . . Shielding Activations . | . . . Robots Disrupted . | . . . Combat Hostiles . | . . . Robots Corrupted . | . . . Combat Hostiles . | . . . Parts Fried . | . . . Impact Corruptions . | . . . Robots Melted . | . . . Combat Hostiles . | . . . Parts Melted 1 | . . 1 Heat Transferred 1079 | 100 125 854 Parts Sabotaged . | . . . Parts Stolen . | . . . Parts Stripped . | . . . Power Chain Reactions 1 | . . 1 Alert | -11 -10 -9 ------- Run | Yrd Mat Mat Maximum Alert Level . | . . . Low Security (%) 100 | 100 100 100 Level 1 . | . . . Level 2 . | . . . Level 3 . | . . . Level 4 . | . . . Level 5 . | . . . High Security . | . . . Max Security . | . . . Peak Influence 82 | 5 70 82 Initial . | . . . Average 11 | . 12 14 Influence Increases 320 | 5 85 230 Destroy 0b10 Robot/C 180 | . 40 140 Destroy 0b10 Robot/NC 20 | 5 5 10 Destroy Leader 50 | . 10 40 Disable Machine 15 | . . 15 Destroy Structure 10 | . . 10 Lose Combat Pursuer 45 | . 30 15 Influence Decreases 258 | 5 85 168 Time Decay 140 | 5 85 50 Lost Part 118 | . . 118 Squads Dispatched . | . . . Investigation . | . . . Extermination . | . . . Reinforcement . | . . . Assault . | . . . Garrison . | . . . Intercept . | . . . Searches Triggered . | . . . Construction Impeded . | . . . Haulers Reinforced . | . . . Active Scanning Responses . | . . . Cargo Convoy Interrupts . | . . . Stealth | -11 -10 -9 --------- Run | Yrd Mat Mat Distress Signals 2 | . 1 1 Communications Jammed . | . . . Distress Signals . | . . . Times Spotted 19 | . 8 11 Peak Tracking Total 7 | . 3 7 Tactical Retreats 2 | . 1 1 Traps | -11 -10 -9 ------- Run | Yrd Mat Mat Traps Triggered 1 | . 1 . Indirectly . | . . . Trap Hack Attempts . | . . . Triggered . | . . . Disarmed . | . . . Reprogrammed . | . . . Reused . | . . . Traps Extracted . | . . . Installed . | . . . Triggered . | . . . Machines | -11 -10 -9 ---------- Run | Yrd Mat Mat Machines Disabled 1 | . . 1 Max in Single Turn 1 | . . 1 Machines Repaired . | . . . Machines Dismantled . | . . . Machines Sabotaged . | . . . Overloaded Fab Kills . | . . . Hacking | -11 -10 -9 --------- Run | Yrd Mat Mat Machines Accessed 2 | . 1 1 Terminals 2 | . 1 1 Fabricators . | . . . Repair Stations . | . . . Recycling Units . | . . . Scanalyzers . | . . . Garrison Access . | . . . Total Hacks 5 | . 1 4 Successful 2 | . 1 1 Failed 3 | . . 3 Catastrophic . | . . . Database Lockouts . | . . . Manual 4 | . . 4 Terminals 5 | . 1 4 Fabricators . | . . . Repair Stations . | . . . Recycling Units . | . . . Scanalyzers . | . . . Garrison Access . | . . . Terminal Hacks 2 | . 1 1 Robot Analysis 2 | . 1 1 Fabricator Hacks . | . . . Repair Station Hacks . | . . . Recycling Unit Hacks . | . . . Scanalyzer . | . . . Garrison Access Hacks . | . . . Unauthorized Hacks . | . . . Terminals . | . . . Fabricators . | . . . Repair Stations . | . . . Recycling Units . | . . . Scanalyzers . | . . . Garrison Access . | . . . Data Cores Recovered 1 | . 1 . Used . | . . . Hacking Detections 2 | . 1 1 Full Trace Events . | . . . Feedback Events . | . . . Feedback Blocked . | . . . Robot Schematics Acquired . | . . . Robots Built . | . . . Authchips . | . . . Time . | . . . Total Robot Build Rating . | . . . Part Schematics Acquired . | . . . Parts Built . | . . . Authchips . | . . . Time . | . . . Total Part Build Rating . | . . . Part Studies Acquired . | . . . Parts Repaired . | . . . Time . | . . . Parts Recycled . | . . . Recycled Matter . | . . . Retrieved Matter . | . . . Retrieved Components . | . . . Parts Scanalyzed . | . . . Part Schematics Acquired . | . . . Parts Damaged . | . . . Bothacking | -11 -10 -9 ------------ Run | Yrd Mat Mat Used RIF Installer . | . . . Robots Hacked . | . . . Non-combat . | . . . Combat . | . . . Robot Hacks Applied . | . . . Relay Couplers Released . | . . . Fabnet Peak Effective % . | . . . Robots Rewired . | . . . Allies Hacked . | . . . Hacks Repelled . | . . . Allies | -11 -10 -9 -------- Run | Yrd Mat Mat Total Allies . | . . . Largest Group . | . . . Highest-Rated Group . | . . . Highest-Rated Ally . | . . . Total Orders . | . . . Ally Attacks . | . . . Total Damage . | . . . Kills . | . . . Allies Corrupted . | . . . Allies Melted . | . . . Intel | -11 -10 -9 ------- Run | Yrd Mat Mat Active Infowar (turns) 739 | 41 473 225 Terrain 129 | 41 88 . Seismic 610 | . 385 225 Robot Analysis Total 2 | . 1 1 Derelict Logs Recovered . | . . . Drone Launches . | . . . Drone Recoveries . | . . . Exploration | -11 -10 -9 ------------- Run | Yrd Mat Mat Turns Passed 901 | 134 473 294 Spaces Moved 467 | 75 268 124 Core 25 | 16 . 9 Treads 442 | 59 268 115 Legs . | . . . Wheels . | . . . Hover . | . . . Flight . | . . . Fastest Speed 50 | 50 160 50 Average Speed 156 | 143 160 156 Slowest Speed 200 | 160 160 200 Overloaded Moves . | . . . Propulsion Burnouts . | . . . Robots Hopped . | . . . Potential Cave-ins . | . . . Cave-ins Triggered . | . . . Exploration Rate (%) 18 | 4 38 14 Regions Visited 2 Branch Regions . Pre-discovered Areas . | . . . Known Exits Taken . | . . . Unknown Exits Taken 2 | 1 1 . Scrap Searched . | . . . Spaces Dug . | . . . Terrain Destroyed 7 | . . 7 Melee . | . . . Projectile . | . . . AOE 7 | . . 7 Terrain Rammed . | . . . Walls Destroyed . | . . . Machines Disabled . | . . . Actions | -11 -10 -9 --------- Run | Yrd Mat Mat Total 558 | 90 293 175 Wait . | . . . Move 465 | 74 267 124 Hop . | . . . Pick Up 13 | 5 7 1 Fast Attach 10 | 7 . 3 Attach 9 | . . 9 Detach . | . . . Swap 3 | . 2 1 Drop 5 | . 5 . Fire 45 | 4 10 31 Melee . | . . . Ram . | . . . Kick . | . . . Crush 8 | . 2 6 Escape Stasis . | . . . Rewire . | . . . Trap . | . . . Miscellaneous . | . . . Route ------- -11/Scrapyard -10/Materials (discovered 2 exits: *Mat / [*Min]) -9/Materials History --------- Turn | Location | Event 14 | -11/Scrapyard | Discovered new exit (range 16) 135 | -11/Scrapyard | Entered Materials 301 | -10/Materials | Build established: Mutant 394 | -10/Materials | Discovered new exit (range 7) 592 | -10/Materials | Discovered new exit (range 9) 608 | -10/Materials | Entered another Materials area 608 | -9/Materials | Evolved 2 slots: Propulsion x1, Utility x1 845 | -9/Materials | Core integrity fell below 50% 867 | -9/Materials | Core integrity fell below 20% 902 | -9/Materials | Destroyed by G-47 Trooper with Particle Gun Last Messages --------------- 00889_ C-30 ARC bursts open, deploying its payload. 00889_ G-34 Mercenary unfolds itself. 00889_ U-05 Engineer builds a Door. 00891_ Acquired 26 matter. 00891_ U-05 Engineer lays Concrete. 00892_ Slammed into U-05 Engineer. 00893_ Acquired 66 matter. 00894_ Slammed into G-47 Trooper. 00895_ U-05 Engineer lays Concrete. 00896_ Slammed into G-47 Trooper. 00896_ U-05 Engineer lays Concrete. 00897_ Slammed into G-34 Mercenary. 00897_ U-05 Engineer lays Concrete. 00899_ Grenade Launcher destroyed. 00899_ Slammed into G-34 Mercenary. 00899_ G-34 Mercenary knocked back. 00899_ U-05 Engineer builds a Door. 00900_ R-06 Scavenger collects Lgt. Ion Engine. 00900_ Slammed into G-34 Mercenary. 00901_ U-05 Engineer lays Concrete. Map ----- +----------------------------------------------------+ | ??# # #??????? | | ??# """ """ # ###+###########??????? | | ??# """ """ ## ## """"" #??????????? | | ??? """ """ ## ## T """"" #??????????? | | ??? ## ## """"" #??????????? | | ???########### ## #??????????? | | ?????????????# ## #??????????? | | ?????????????# ## #??????????? | | ?????????????# ## !! #??????????? | | ?????????????# ## ! #??????????? | | ?????????????# ############??????????? | | ?????????????# #?????????????????????? | | ?????????????# #?????????????????????? | | ?????????????# ####??????????????????? | | ?????????????# ## #########??????????? | | ?????????????# ## #??????????? | | ?????????????# ##!" " #??????????? | | ?????????????# ##%! #??????????? | | ?????????????# ## [ #??????????? | | ?????????????# ## = " #??????????? | | ?????????????# ## = ! " #??????????? | | ?????????????# ## [==" #??????????? | | ?????????????# ## */uu #??????????? | | ?????????????#a ######g######?????????? | | ?????????????# r%g%% #?????????? | | ?????????????# m %%@ #?????????? | | ?????????????# #######g## +?????????? | | ?????????? #???? ? #?????????? | | ??????? #??? "T" #? #?????????? | | ??????# """ #??! """ #??#?????????? | | ??????# """ ##!! #????????????? | | ??????# """ ##########????????????? | | ??????# #?????????????????????? | | ??????# ?? #?????????????????????? | | ???????????""" ??????????????????????? | | ???????????""" ??????????????????????? | | ?????????????" ??????????????????????? | | ????????????? ! ??????????????????????? | | ????????????? ??????????????????????? | | ?????????????" ??????????????????????? | | ?????????????? ??????????????????????? | | ???????????????????????????????????????? | | ???????????????????????????????????????? | | ???????????????????????????????????????? | | ???????????????????????????????????????? | | ???????????????????????????????????????? | | ???????????????????????????????????????? | | ???????????????????????????????????????? | | ???????????????????????????????????????? | | ???????????????????????????????????????? | +----------------------------------------------------+ Best States ------------- Heat Dissipation 42 Energy Generation 14 Energy Capacity 265 Matter Stores 300 Matter Capacity 300 Sight Range 16 Terrain Scan Range 16 Terrain Scan Density 10 Evasion (%) 40 Recoil Reduction 3 Item Schematics ----------------- None Robot Schematics ------------------ None Fabricated ------------ Nothing Repaired ---------- Nothing Studied --------- None Alien Tech Used ----------------- None Achievements -------------- None Challenges ------------ None Game ------ Seed TripodTowerArmor Manual? 0 Play Time 00:10:28 Cumulative 48.7 hours Start 2025.11.03 @ 19:36:05 End 2025.11.03 @ 20:57:32 Sessions 2 Manual Loads 0 Difficulty Rogue Special Mode None Game No. 45 Rogue 40 Adventurer 0 Explorer 5 Win Type - Total 0 Types 0/0/0/0/0/0/0/0/0/0 Lore% 24 Gallery% 26 Achievement% 16 Wizard Run 0 Options --------- Layout 0 ASCII 0 Keyboard 1 Movement Numpad Keybinds 0 Fullscreen 2 Font 18/SmallcapsGlow Map View 76x50 Zoom Use 0% Tactical HUD 1 Map Filters NONE Filters NONE Steam 1 RUN: f17d4534-0d69-43b6-90de-d8352caa4172